bitfinex/quotes_BTCUSD_20230118
["timestamp","ask_amount","ask_price","bid_price","bid_amount"]
[1674068050140,0.308829,20955.0,20953.0,0.06474259]
[1674068050401,0.78461203,20957.0,20954.0,0.058]
[1674068050717,0.78361203,20957.0,20953.0,0.25906356]
[1674068050964,0.001,20955.0,20954.0,0.058]
[1674068051229,0.332776,20955.0,20951.0,0.477283]
[1674068051481,0.332776,20955.0,20954.0,0.058]
[1674068051482,0.0478335,20955.0,20954.0,0.058]
[1674068051740,0.85648581,20958.0,20953.0,0.477258]
[1674068052018,0.85648581,20958.0,20954.0,0.19432097]
[1674068052019,0.015,20957.0,20954.0,0.19432097]
[1674068052291,0.015,20957.0,20953.0,0.483258]
[1674068052555,0.322122,20956.0,20953.0,0.483258]
[1674068052813,0.14262258,20957.0,20953.0,0.477258]
[1674068053065,0.001,20955.0,20953.0,0.477258]
[1674068053375,0.25611966,20956.0,20953.0,0.477258]
[1674068053622,0.3710305,20956.0,20953.0,0.006]
[1674068053901,0.336765,20955.0,20952.0,0.54297568]
[1674068054170,0.015,20955.0,20953.0,0.006]
[1674068054437,0.554063,20958.0,20953.0,0.477257]
[1674068054710,0.015,20956.0,20954.0,0.24569357]
[1674068054990,0.73050867,20960.0,20955.0,0.257711]
[1674068055248,0.73050867,20960.0,20956.0,0.19432097]
[1674068055502,0.73050867,20960.0,20957.0,0.19432097]
[1674068056313,0.73050867,20960.0,20955.0,0.9544]
[1674068056314,0.25340667,20960.0,20955.0,0.9544]
[1674068056568,0.25340667,20960.0,20956.0,0.05263745]
[1674068056569,0.30124017,20960.0,20956.0,0.05263745]
[1674068056816,0.30124017,20960.0,20956.0,1.20130942]
[1674068056817,0.25440667,20960.0,20956.0,1.20130942]
[1674068057345,0.25440667,20960.0,20956.0,1.00698845]
[1674068057595,0.30124017,20960.0,20956.0,1.00698845]
[1674068057881,0.77933917,20960.0,20956.0,0.11063745]
[1674068058105,0.316573,20959.0,20956.0,0.058]
[1674068058368,0.327614,20958.0,20956.0,0.058]
[1674068058706,0.309744,20957.0,20956.0,0.058]
[1674068059390,0.64936775,20957.0,20956.0,0.058]
[1674068059654,2.0682633,20957.0,20956.0,0.058]
[1674068059901,2.0682633,20957.0,20951.0,0.34475198]
[1674068059902,0.04133827,20955.0,20951.0,0.34475198]
[1674068060151,0.3779455,20954.0,20950.0,0.19508994]
[1674068060427,0.3694795,20953.0,20950.0,0.00365994]
[1674068060699,0.324805,20952.0,20951.0,0.07105005]
[1674068060963,0.04133827,20955.0,20953.0,0.06866145]
[1674068061768,0.323657,20954.0,20950.0,0.82572992]
[1674068062023,0.01,20952.0,20951.0,0.05829772]
[1674068062279,0.01,20952.0,20951.0,0.31606872]
[1674068062867,0.019,20955.0,20953.0,0.006]
[1674068063132,0.73929075,20957.0,20952.0,0.15]
[1674068063380,0.26212375,20957.0,20953.0,0.19432097]
[1674068063637,0.73930775,20957.0,20953.0,0.19432097]
[1674068063910,0.019,20955.0,20953.0,0.20032097]
[1674068064155,0.73930775,20957.0,20951.0,0.05829772]
[1674068064395,0.5350175,20957.0,20951.0,0.87992069]
[1674068064667,0.24410158,20956.0,20951.0,0.87992069]
[1674068064908,0.24410158,20956.0,20951.0,0.53559972]
[1674068065172,0.11996206,20955.0,20950.0,0.82573492]
[1674068065404,0.3828955,20954.0,20950.0,0.07464333]
[1674068065650,0.313044,20953.0,20950.0,0.07464333]
[1674068065895,0.305828,20952.0,20950.0,0.00365994]
[1674068066165,0.319709,20951.0,20950.0,0.07665994]
[1674068066415,0.319709,20951.0,20950.0,0.00365994]
[1674068066652,0.319709,20951.0,20950.0,0.07665994]
[1674068066904,0.677687,20954.0,20950.0,0.00365994]
[1674068067145,0.57497902,20953.0,20950.0,0.19798091]
[1674068067386,0.25093802,20953.0,20950.0,0.00365994]
[1674068067634,0.002,20951.0,20950.0,0.07665994]
[1674068068377,0.00193618,20951.0,20950.0,0.61927402]
[1674068068624,0.25269583,20956.0,20950.0,0.93165902]
[1674068068871,0.25269583,20956.0,20951.0,0.34432097]
[1674068069143,0.25269583,20956.0,20952.0,0.19432097]
[1674068069635,0.4772,20956.0,20952.0,0.19432097]
[1674068070130,0.5250335,20956.0,20950.0,0.5413]
[1674068070380,0.3750665,20955.0,20952.0,0.061]
[1674068070634,0.318978,20954.0,20952.0,0.061]
[1674068070888,0.11503165,20956.0,20952.0,0.061]
[1674068071381,0.300142,20955.0,20952.0,0.061]
[1674068071603,0.328563,20954.0,20950.0,0.54626702]
[1674068071860,0.31644,20953.0,20950.0,0.54626702]
[1674068072117,0.28707913,20956.0,20950.0,0.06894802]
[1674068072369,0.0478335,20956.0,20951.0,0.19432097]
[1674068072618,0.001,20955.0,20952.0,0.061]
[1674068072890,0.27881792,20955.0,20952.0,0.061]
[1674068073197,0.22998442,20955.0,20950.0,0.891024]
[1674068073406,0.22998442,20955.0,20950.0,0.62027202]
[1674068073407,0.002,20953.0,20950.0,0.62027202]
[1674068073673,0.0478335,20953.0,20950.0,0.69627202]
[1674068073992,0.23098442,20955.0,20952.0,0.061]
[1674068074171,0.23098442,20955.0,20952.0,0.19432097]
[1674068074423,0.23098442,20955.0,20950.0,1.041024]
[1674068074681,0.27881792,20955.0,20953.0,0.15]
[1674068074941,0.23298442,20955.0,20953.0,0.15]
[1674068075245,0.23298442,20955.0,20952.0,0.05888373]
[1674068075736,0.22998442,20955.0,20952.0,0.20888373]
[1674068075983,0.23998442,20955.0,20952.0,0.20888373]
[1674068076241,0.76677913,20958.0,20952.0,0.68615873]
[1674068076506,0.76677913,20958.0,20953.0,0.19432097]
[1674068076507,0.01,20955.0,20953.0,0.19432097]
[1674068076752,0.59573165,20958.0,20952.0,0.68615873]
[1674068077001,0.001,20955.0,20953.0,0.19432097]
[1674068077253,0.001,20955.0,20952.0,0.74715873]
[1674068077834,0.97615913,20958.0,20952.0,0.68615873]
[1674068078075,0.01,20955.0,20953.0,0.19432097]
[1674068078330,0.11403165,20957.0,20952.0,0.53615873]
[1674068078581,0.001,20955.0,20952.0,0.7914797]
[1674068078832,0.16186515,20957.0,20952.0,0.53615873]
[1674068079083,0.16186515,20957.0,20952.0,0.7914797]
[1674068079344,0.52741268,20957.0,20952.0,0.7304797]
[1674068079614,0.45262165,20956.0,20952.0,0.7914797]
[1674068079865,0.329195,20955.0,20952.0,0.59715873]
[1674068080131,0.0478335,20956.0,20952.0,0.59715873]
[1674068080396,0.48057918,20957.0,20952.0,0.59715873]
[1674068080640,0.52841268,20957.0,20952.0,0.7914797]
[1674068081146,0.322591,20956.0,20952.0,0.7304797]
[1674068081398,0.334024,20955.0,20952.0,0.59715873]
[1674068081660,0.47957918,20957.0,20953.0,0.15]
[1674068081926,0.19450005,20957.0,20953.0,0.34432097]
[1674068082185,0.19450005,20957.0,20953.0,0.19432097]
[1674068082186,0.19550005,20957.0,20953.0,0.19432097]
[1674068082440,0.001,20955.0,20953.0,0.19432097]
[1674068082707,0.59573165,20958.0,20954.0,0.15]
[1674068082959,0.38208742,20960.0,20955.0,0.45203597]
[1674068083218,0.38208742,20960.0,20956.0,0.19432097]
[1674068083474,0.38208742,20960.0,20957.0,0.19432097]
[1674068083971,0.26805577,20960.0,20957.0,0.477166]
[1674068084225,0.38208742,20960.0,20955.0,0.82052888]
[1674068084481,0.38208742,20960.0,20954.0,0.67496848]
[1674068084482,0.250447,20958.0,20954.0,1.01828936]
[1674068084741,0.250447,20958.0,20955.0,0.477208]
[1674068084742,0.0478335,20957.0,20955.0,0.477208]
[1674068084996,0.36447865,20958.0,20954.0,0.07014748]
[1674068085244,0.36447865,20958.0,20954.0,0.54736248]
[1674068085245,0.23822727,20958.0,20954.0,0.54736248]
[1674068085506,0.11403165,20958.0,20955.0,0.049]
[1674068085763,0.49085353,20959.0,20955.0,0.526212]
[1674068086030,0.31980605,20959.0,20955.0,0.29232097]
[1674068086272,0.49085353,20959.0,20955.0,0.29232097]
[1674068086534,0.96799453,20959.0,20955.0,0.098]
[1674068086804,0.42773265,20958.0,20955.0,0.098]
[1674068087061,0.59277981,20957.0,20954.0,0.63936048]
[1674068087324,0.303683,20956.0,20955.0,0.477209]
[1674068087586,0.26677581,20957.0,20955.0,0.526209]
[1674068087845,0.26677581,20957.0,20955.0,0.049]
[1674068088138,0.26677581,20957.0,20954.0,0.54736048]
[1674068088349,0.26677581,20957.0,20954.0,0.16214748]
[1674068088598,0.26677581,20957.0,20954.0,0.07014748]
[1674068088858,0.26677581,20957.0,20955.0,0.049]
[1674068089612,0.26677581,20957.0,20954.0,0.07014748]
[1674068090133,0.26677581,20957.0,20954.0,0.16214748]
[1674068090388,0.26677581,20957.0,20955.0,0.049]
[1674068090639,0.26677581,20957.0,20954.0,0.07014748]
[1674068090898,0.26677581,20957.0,20954.0,0.16214748]
[1674068091175,0.31460931,20957.0,20954.0,0.07014748]
[1674068091424,0.26677581,20957.0,20955.0,0.049]
[1674068091942,0.322013,20956.0,20955.0,0.049]
[1674068092181,0.26677581,20957.0,20955.0,0.049]
[1674068093233,0.26677581,20957.0,20954.0,0.07014748]
[1674068093481,0.26677581,20957.0,20955.0,0.049]
[1674068093734,0.477122,20959.0,20955.0,0.049]
[1674068093979,0.477122,20959.0,20955.0,0.24332097]
[1674068094484,1.18832109,20960.0,20955.0,0.24332097]
[1674068094742,1.48381163,20960.0,20955.0,0.19432097]
[1674068095002,0.317828,20959.0,20955.0,0.21392097]
[1674068095259,0.52440032,20958.0,20955.0,0.049]
[1674068095511,0.20340732,20958.0,20955.0,0.049]
[1674068096057,0.20340732,20958.0,20954.0,0.54738148]
[1674068096376,0.28064083,20958.0,20955.0,0.049]
[1674068096610,0.20340732,20958.0,20954.0,0.69738148]
[1674068096877,0.11403165,20961.0,20956.0,0.5400208]
[1674068097194,0.28507913,20963.0,20957.0,0.45200397]
[1674068097438,0.11403165,20963.0,20958.0,1.55624997]
[1674068097700,0.11403165,20963.0,20959.0,0.19432097]
[1674068097952,0.11403165,20963.0,20960.0,0.19432097]
[1674068098207,0.11403165,20963.0,20960.0,0.25110327]
[1674068098467,0.59104865,20964.0,20960.0,0.25110327]
[1674068098734,0.26468007,20963.0,20960.0,0.25110327]
[1674068098998,0.26468007,20963.0,20958.0,0.81902784]
[1674068098999,0.5860722,20963.0,20958.0,0.81902784]
[1674068099253,0.19126516,20962.0,20958.0,0.049]
[1674068099508,0.321113,20961.0,20957.0,0.53090616]
[1674068099795,0.07723351,20961.0,20960.0,0.006]
[1674068100045,0.77355205,20962.0,20957.0,0.395646]
[1674068100315,0.85078556,20962.0,20958.0,0.049]
[1674068100563,0.29649005,20962.0,20958.0,0.19432097]
[1674068100832,0.477078,20961.0,20958.0,0.19432097]
[1674068101149,0.11403165,20962.0,20957.0,0.62390716]
[1674068101399,0.07723351,20962.0,20957.0,0.49106513]
[1674068101643,0.07723351,20962.0,20957.0,0.34106513]
[1674068101896,0.477086,20961.0,20957.0,0.34106513]
[1674068102144,0.477086,20961.0,20957.0,0.05374416]
[1674068102145,0.2765449,20961.0,20957.0,0.05374416]
[1674068102395,0.2765449,20961.0,20958.0,0.092]
[1674068102706,0.2765449,20961.0,20957.0,0.05374416]
[1674068102707,0.19931139,20961.0,20957.0,0.05374416]
[1674068102959,0.19931139,20961.0,20957.0,0.14674416]
[1674068103221,0.19931139,20961.0,20957.0,0.39806513]
[1674068103469,0.19931139,20961.0,20958.0,0.049]
[1674068104485,0.19931139,20961.0,20957.0,0.87523213]
[1674068104765,0.2765449,20961.0,20957.0,0.53091116]
[1674068105094,0.35190279,20961.0,20957.0,0.53091116]
[1674068105270,0.2765449,20961.0,20957.0,0.53091116]
[1674068105540,0.2765449,20961.0,20957.0,0.62391116]
[1674068105770,0.19931139,20961.0,20957.0,0.62391116]
[1674068106026,0.2765449,20961.0,20957.0,0.14674416]
[1674068106275,0.87668759,20961.0,20957.0,0.14674416]
[1674068106524,0.07723351,20960.0,20957.0,0.093]
[1674068106773,0.320112,20959.0,20957.0,0.093]
[1674068107026,0.07723351,20960.0,20957.0,0.093]
[1674068107286,0.32237708,20961.0,20957.0,0.093]
[1674068107577,0.32237708,20961.0,20957.0,0.28732097]
[1674068107795,0.32237708,20961.0,20957.0,0.093]
[1674068108058,0.326943,20960.0,20957.0,0.28732097]
[1674068108307,0.19931139,20961.0,20955.0,1.3659765]
[1674068108579,0.07723351,20960.0,20957.0,0.093]
[1674068108840,0.19931139,20961.0,20957.0,0.093]
[1674068109083,0.67639739,20961.0,20957.0,0.28732097]
[1674068109588,0.34025,20960.0,20957.0,0.093]
[1674068109838,0.311021,20959.0,20955.0,0.4115625]
[1674068110211,0.311021,20959.0,20957.0,0.093]
[1674068110212,0.07723351,20958.0,20957.0,0.093]
[1674068110401,0.07723351,20958.0,20953.0,0.34190184]
[1674068110402,0.802575,20958.0,20953.0,0.34190184]
[1674068110614,0.38233851,20957.0,20952.0,0.53460862]
[1674068110832,0.07723351,20956.0,20952.0,0.53460862]
[1674068111530,0.07723351,20955.0,20952.0,0.05733962]
[1674068112235,0.08816736,20956.0,20952.0,0.05733962]
[1674068112460,0.001,20955.0,20952.0,0.14233962]
[1674068112693,0.25451758,20957.0,20952.0,0.14233962]
[1674068112694,0.25451758,20957.0,20952.0,0.53461962]
[1674068112946,0.001,20955.0,20953.0,0.19432097]
[1674068113371,0.25451758,20957.0,20952.0,0.68144166]
[1674068113636,0.001,20955.0,20952.0,0.81176263]
[1674068113897,0.81448465,20960.0,20954.0,0.257726]
[1674068114151,0.81448465,20960.0,20955.0,0.19432097]
[1674068114152,0.700453,20960.0,20955.0,0.19432097]
[1674068114407,0.21598221,20959.0,20956.0,0.19432097]
[1674068114667,0.477149,20958.0,20954.0,0.34190184]
[1674068114912,0.001,20955.0,20952.0,0.8733435]
[1674068115183,0.07723351,20954.0,20952.0,0.53144166]
[1674068115436,0.07723351,20954.0,20952.0,0.46084224]
[1674068115715,0.46348789,20957.0,20952.0,0.46084224]
[1674068115953,0.5407214,20957.0,20952.0,0.65516321]
[1674068116716,0.5407214,20957.0,20950.0,0.70776494]
[1674068116717,1.754401,20953.0,20950.0,0.00365994]
[1674068116999,0.69740951,20952.0,20950.0,0.00365994]
[1674068117259,1.285413,20951.0,20950.0,0.00365994]
[1674068117511,1.62530828,20951.0,20950.0,0.00365994]
[1674068117759,1.285413,20951.0,20950.0,0.00365994]
[1674068118013,1.285413,20951.0,20948.0,0.00631458]
[1674068118270,0.74721028,20950.0,20948.0,0.00631458]
[1674068118521,0.340776,20949.0,20948.0,0.00631458]
[1674068118783,0.61517528,20949.0,20948.0,0.00631458]
[1674068119543,1.09252428,20949.0,20948.0,0.00631458]
[1674068119799,1.18352428,20949.0,20948.0,0.00631458]
[1674068120312,1.52341956,20949.0,20948.0,0.00631458]
[1674068120572,1.60031956,20949.0,20948.0,0.00631458]
[1674068121613,1.84341612,20949.0,20948.0,0.00631458]
[1674068121860,1.26042428,20949.0,20948.0,0.00631458]
[1674068122361,1.56042428,20949.0,20948.0,0.00631458]
[1674068122610,1.26042428,20949.0,20948.0,0.00631458]
[1674068122860,1.90031956,20949.0,20948.0,0.00631458]
[1674068123108,2.31215032,20949.0,20948.0,0.00631458]
[1674068123357,2.38955032,20949.0,20948.0,0.00631458]
[1674068123619,2.11515104,20949.0,20948.0,0.00631458]
[1674068123869,2.34232634,20949.0,20948.0,0.00631458]
[1674068124122,2.25132634,20949.0,20948.0,0.00631458]
[1674068124372,2.34332634,20949.0,20948.0,0.00631458]
[1674068124633,2.25132634,20949.0,20948.0,0.00631458]
[1674068124895,2.34332634,20949.0,20948.0,0.00631458]
[1674068125893,2.11615104,20949.0,20948.0,0.00631458]
[1674068126150,2.32619157,20949.0,20948.0,0.00631458]
[1674068126413,2.67058624,20949.0,20948.0,0.00631458]
[1674068126668,1.77544157,20947.0,20946.0,0.00910537]
[1674068126923,3.05523854,20947.0,20946.0,0.00910537]
[1674068127464,3.05523854,20947.0,20945.0,0.00932007]
[1674068127465,0.15,20946.0,20945.0,0.00932007]
[1674068127708,2.52640097,20946.0,20945.0,0.00932007]
[1674068128003,2.36810097,20946.0,20945.0,0.00932007]
[1674068128249,2.51120097,20946.0,20945.0,0.00932007]
[1674068128524,2.98243883,20946.0,20945.0,0.00932007]
[1674068128766,2.16550097,20946.0,20945.0,0.00932007]
[1674068129277,2.3631468,20946.0,20945.0,0.00932007]
[1674068129536,2.16550097,20946.0,20945.0,0.00932007]
[1674068129798,2.46810097,20946.0,20945.0,0.00932007]
[1674068130056,2.95070316,20946.0,20945.0,0.00932007]
[1674068130813,3.28443221,20946.0,20945.0,0.00932007]
[1674068131079,3.58135006,20946.0,20945.0,2.007e-05]
[1674068131330,0.473111,20945.0,20944.0,0.00148667]
[1674068131586,3.48509016,20945.0,20944.0,0.00148667]
[1674068132336,3.57709016,20945.0,20944.0,0.00148667]
[1674068132862,0.477463,20944.0,20943.0,0.20379544]
[1674068133131,1.22010228,20944.0,20943.0,0.00947447]
[1674068133391,1.37010228,20944.0,20943.0,0.00947447]
[1674068133892,1.46210228,20944.0,20943.0,0.00947447]
[1674068134159,2.73960256,20944.0,20943.0,0.00947447]
[1674068134427,2.627854,20944.0,20943.0,0.00947447]
[1674068134667,2.67488305,20944.0,20943.0,0.00947447]
[1674068134963,2.96158305,20944.0,20943.0,0.00947447]
[1674068135451,3.23602362,20944.0,20943.0,0.00947447]
[1674068135827,2.96158305,20944.0,20943.0,0.00947447]
[1674068136025,3.21377967,20944.0,20943.0,0.00947447]
[1674068136558,2.96158305,20944.0,20943.0,0.00947447]
[1674068137069,2.914554,20944.0,20943.0,0.00947447]
[1674068137342,2.96158305,20944.0,20943.0,0.00947447]
[1674068137609,1.444318,20943.0,20939.0,0.009769]
[1674068137860,3.40564991,20943.0,20939.0,0.009769]
[1674068138611,3.16448127,20943.0,20939.0,0.009769]
[1674068138890,3.38351824,20943.0,20939.0,0.009769]
[1674068139124,3.36326924,20943.0,20939.0,0.009769]
[1674068139405,3.16448127,20943.0,20939.0,0.009769]
[1674068139714,0.4367,20942.0,20939.0,0.009769]
[1674068139921,2.46766831,20942.0,20939.0,0.009769]
[1674068140186,2.94996731,20942.0,20939.0,0.009769]
[1674068140433,2.76183348,20942.0,20941.0,3e-08]
[1674068141216,2.85383348,20942.0,20941.0,3e-08]
[1674068141468,2.47513348,20942.0,20941.0,3e-08]
[1674068141718,2.85383348,20942.0,20941.0,3e-08]
[1674068141986,3.33643567,20942.0,20941.0,3e-08]
[1674068143009,3.24443567,20942.0,20941.0,3e-08]
[1674068143260,3.33643567,20942.0,20941.0,3e-08]
[1674068143519,3.24443567,20942.0,20941.0,3e-08]
[1674068143770,3.33643567,20942.0,20941.0,3e-08]
[1674068144033,3.04973567,20942.0,20941.0,3e-08]
[1674068144299,2.56713348,20942.0,20941.0,3e-08]
[1674068144580,1.31430328,20942.0,20941.0,0.194321]
[1674068144825,0.897308,20942.0,20941.0,3e-08]
[1674068145349,1.1302823,20942.0,20941.0,3e-08]
[1674068146174,1.0382823,20942.0,20941.0,3e-08]
[1674068146355,0.889308,20942.0,20941.0,0.00100003]
[1674068146607,0.805308,20942.0,20941.0,3e-08]
[1674068146861,0.805308,20942.0,20941.0,0.00100003]
[1674068146862,0.889308,20942.0,20941.0,0.00100003]
[1674068147119,0.411799,20942.0,20941.0,0.00100003]
[1674068147381,0.561509,20942.0,20941.0,0.00100003]
[1674068147642,0.561509,20942.0,20941.0,3e-08]
[1674068147643,0.806773,20942.0,20941.0,3e-08]
[1674068147900,0.890773,20942.0,20941.0,0.00100003]
[1674068148668,1.3753492,20942.0,20941.0,0.00100003]
[1674068148927,1.71524448,20942.0,20941.0,0.00100003]
[1674068149185,1.53066828,20942.0,20941.0,0.00100003]
[1674068149454,1.190773,20942.0,20941.0,0.00100003]
[1674068149709,1.76139782,20942.0,20941.0,0.00100003]
[1674068150513,1.12150254,20942.0,20941.0,0.00100003]
[1674068151336,0.64399354,20942.0,20941.0,0.00100003]
[1674068151515,0.31472954,20942.0,20941.0,0.00100003]
[1674068152287,0.084,20942.0,20941.0,0.00100003]
[1674068152788,0.084,20942.0,20941.0,0.07400003]
[1674068153289,0.084,20942.0,20941.0,0.00100003]
[1674068153557,1.07910062,20944.0,20941.0,3e-08]
[1674068153808,0.9780136,20944.0,20941.0,3e-08]
[1674068154062,0.404204,20942.0,20941.0,0.00100003]
[1674068154337,0.403434,20942.0,20941.0,0.00100003]
[1674068154826,0.083,20942.0,20941.0,0.00100003]
[1674068155358,0.477504,20943.0,20941.0,3e-08]
[1674068155625,0.67763562,20944.0,20941.0,0.00100003]
[1674068155874,0.26174034,20944.0,20941.0,0.194321]
[1674068156127,0.069,20942.0,20941.0,0.196321]
[1674068156412,0.33989528,20944.0,20941.0,3e-08]
[1674068156636,0.069,20944.0,20942.0,0.0774]
[1674068156893,0.81731728,20946.0,20942.0,0.0774]
[1674068157144,0.81731728,20946.0,20942.0,0.27172097]
[1674068157401,0.81731728,20946.0,20942.0,0.2867044]
[1674068157646,0.81731728,20946.0,20942.0,0.09238343]
[1674068157894,0.321544,20944.0,20942.0,0.09238343]
[1674068158147,0.319587,20944.0,20942.0,0.09238343]
[1674068158405,0.319587,20944.0,20942.0,0.09438343]
[1674068158406,0.071,20944.0,20942.0,0.09438343]
[1674068158656,0.314333,20943.0,20941.0,3e-08]
[1674068158912,0.55472051,20943.0,20941.0,3e-08]
[1674068159184,0.327041,20942.0,20941.0,3e-08]
[1674068159694,1.10455,20942.0,20941.0,3e-08]
[1674068159951,0.80455,20942.0,20941.0,0.00200003]
[1674068160200,0.80455,20942.0,20941.0,3e-08]
[1674068160201,1.07161358,20942.0,20941.0,3e-08]
[1674068160448,1.07161358,20942.0,20941.0,0.00200003]
[1674068160449,1.14261358,20942.0,20941.0,0.00200003]
[1674068160964,0.398041,20942.0,20941.0,0.00200003]
[1674068161459,0.33989528,20944.0,20941.0,3e-08]
[1674068161714,0.639203,20943.0,20941.0,3e-08]
[1674068162032,0.410115,20942.0,20941.0,0.00200003]
[1674068162257,0.339115,20942.0,20939.0,0.009769]
[1674068162514,0.41712879,20942.0,20941.0,0.002]
[1674068162791,0.41712879,20942.0,20939.0,0.009769]
[1674068162792,0.332586,20941.0,20939.0,0.009769]
[1674068163025,0.310346,20940.0,20939.0,0.009769]
[1674068163523,0.310346,20940.0,20939.0,0.011769]
[1674068163768,0.310346,20940.0,20939.0,0.009769]
[1674068164043,0.310346,20940.0,20939.0,0.011769]
[1674068164303,0.310346,20940.0,20939.0,0.009769]
[1674068165618,0.071,20940.0,20939.0,0.011769]
[1674068165893,0.396378,20940.0,20939.0,0.011769]
[1674068166143,0.384506,20940.0,20939.0,0.011769]
[1674068166403,0.384506,20940.0,20939.0,0.01168415]
[1674068166917,1.41290475,20940.0,20939.0,0.01168415]
[1674068167195,3.49667482,20940.0,20939.0,0.01168415]
[1674068167692,3.32562734,20940.0,20939.0,0.01168415]
[1674068167944,3.49667482,20940.0,20939.0,0.01168415]
[1674068168461,3.32562734,20940.0,20939.0,0.01168415]
[1674068168740,4.17229253,20940.0,20939.0,0.01168415]
[1674068168981,3.80994023,20940.0,20939.0,0.00298438]
[1674068169236,4.28714192,20940.0,20939.0,0.00298438]
[1674068169489,4.63778447,20940.0,20939.0,0.00298438]
[1674068170020,0.318189,20939.0,20937.0,0.00968284]
[1674068170293,4.172984,20938.0,20937.0,0.00968284]
[1674068171559,3.94439552,20938.0,20937.0,0.00968284]
[1674068171823,4.1729224,20938.0,20937.0,0.00968284]
[1674068172077,3.94439552,20938.0,20937.0,0.00968284]
[1674068172333,4.14126032,20938.0,20937.0,0.00968284]
[1674068172850,4.39754526,20938.0,20937.0,0.00968284]
[1674068173101,5.0339638,20938.0,20937.0,0.00968284]
[1674068173598,5.31961795,20938.0,20937.0,0.00968284]
[1674068175338,4.50233989,20938.0,20937.0,0.00968284]
[1674068175592,4.15515199,20938.0,20937.0,0.00968284]
[1674068175848,3.98387521,20938.0,20937.0,0.00968284]
[1674068176114,4.15515217,20938.0,20937.0,0.00968284]
[1674068176626,4.50101914,20938.0,20937.0,0.00968284]
[1674068176924,5.19216646,20938.0,20937.0,0.00968284]
[1674068177164,1.75758064,20936.0,20935.0,0.00968529]
[1674068177467,4.14746084,20936.0,20935.0,0.00968529]
[1674068177708,4.22412733,20936.0,20935.0,0.00968529]
[1674068177961,4.70672952,20936.0,20935.0,0.00968529]
[1674068178494,4.99342952,20936.0,20935.0,0.00968529]
[1674068178759,1.0338723,20935.0,20934.0,9.1e-07]
[1674068179018,3.93608271,20935.0,20934.0,9.1e-07]
[1674068179532,4.42012118,20935.0,20934.0,9.1e-07]
[1674068179784,4.7053635,20935.0,20934.0,9.1e-07]
[1674068180035,4.70536446,20935.0,20934.0,9.1e-07]
[1674068180305,4.84339351,20935.0,20934.0,9.1e-07]
[1674068180560,4.46715023,20935.0,20934.0,9.1e-07]
[1674068180810,4.84323781,20935.0,20934.0,9.1e-07]
[1674068181059,4.55815023,20935.0,20934.0,9.1e-07]
[1674068181316,5.909e-05,20933.0,20930.0,0.01129855]
[1674068181576,2.6579913,20933.0,20930.0,0.01129855]
[1674068181828,5.11376849,20933.0,20930.0,0.01129855]
[1674068182219,0.01105927,20932.0,20930.0,0.01129855]
[1674068182423,0.01105927,20932.0,20929.0,0.01105235]
[1674068182694,0.01105927,20932.0,20928.0,0.01157902]
[1674068182695,1.41992095,20930.0,20928.0,3.7e-07]
[1674068182941,3.42770218,20929.0,20928.0,3.7e-07]
[1674068183192,3.85019903,20929.0,20928.0,3.7e-07]
[1674068183722,0.756281,20928.0,20926.0,0.00988045]
[1674068183975,2.95122197,20927.0,20926.0,0.00988045]
[1674068184803,3.31532197,20927.0,20926.0,0.00988045]
[1674068185020,0.4367,20926.0,20925.0,0.01214924]
[1674068185302,2.00559297,20926.0,20925.0,0.01214924]
[1674068185553,1.99709297,20926.0,20925.0,0.01214924]
[1674068185809,2.22012136,20926.0,20925.0,0.01214924]
[1674068186329,2.7466588,20926.0,20925.0,0.01214924]
[1674068187385,2.31112136,20926.0,20925.0,0.01214924]
[1674068188377,1.83391967,20926.0,20925.0,0.01214924]
[1674068188888,1.45651967,20926.0,20925.0,0.20647021]
[1674068189130,0.893596,20926.0,20925.0,0.01214924]
[1674068189639,0.802596,20926.0,20925.0,0.01214924]
[1674068189887,0.893596,20926.0,20925.0,0.01214924]
[1674068190151,0.802596,20926.0,20925.0,0.01214924]
[1674068190431,0.893596,20926.0,20925.0,0.01214924]
[1674068190693,0.568874,20926.0,20925.0,0.01214924]
[1674068190953,0.90264,20926.0,20925.0,0.01214924]
[1674068191744,0.091,20926.0,20925.0,0.01214924]
[1674068192012,0.091,20926.0,20925.0,0.27031624]
[1674068192554,0.091,20926.0,20925.0,1.12561324]
[1674068192789,0.33989528,20931.0,20925.0,1.51161406]
[1674068193076,0.33885763,20933.0,20930.0,0.1548]
[1674068193309,5.909e-05,20933.0,20932.0,0.0774]
[1674068193576,0.2624133,20932.0,20929.0,0.24074375]
[1674068193864,0.2624133,20932.0,20929.0,0.09074375]
[1674068194111,0.2624133,20932.0,20928.0,0.0768]
[1674068194112,1.15618535,20932.0,20928.0,0.0768]
[1674068194363,0.477777,20931.0,20926.0,0.47708825]
[1674068194623,0.477777,20931.0,20925.0,0.08994924]
[1674068194624,0.41603205,20930.0,20925.0,0.08994924]
[1674068194884,2.66738974,20929.0,20925.0,0.01214924]
[1674068195147,0.2867,20930.0,20928.0,0.01603374]
[1674068195395,0.71224168,20933.0,20929.0,0.258111]
[1674068195662,0.71224168,20933.0,20928.0,0.09343374]
[1674068195907,0.71224168,20933.0,20929.0,0.27172097]
[1674068196162,0.71224168,20933.0,20930.0,0.01309212]
[1674068196412,0.70724168,20933.0,20930.0,0.20741309]
[1674068196667,0.021,20932.0,20930.0,0.01309212]
[1674068196932,0.49875,20932.0,20930.0,0.01309212]
[1674068197191,0.49875,20932.0,20929.0,0.0774]
[1674068197457,0.55498351,20932.0,20928.0,0.0774]
[1674068197810,0.55498351,20932.0,20930.0,0.006]
[1674068197811,0.69023651,20931.0,20930.0,0.006]
[1674068197959,0.69023651,20931.0,20926.0,0.09399111]
[1674068198229,0.87670351,20930.0,20926.0,0.09399111]
[1674068198475,0.55502751,20930.0,20928.0,0.01428054]
[1674068198725,0.477794,20930.0,20926.0,0.2267]
[1674068198975,0.55502751,20930.0,20926.0,0.24062557]
[1674068199239,0.55502751,20930.0,20928.0,0.0773]
[1674068199494,0.477794,20930.0,20928.0,0.0773]
[1674068200014,0.71020815,20931.0,20928.0,0.0773]
[1674068200278,0.021,20930.0,20928.0,0.27762097]
[1674068200511,0.021,20930.0,20928.0,0.0833]
[1674068202032,0.021,20930.0,20929.0,0.42791427]
[1674068202287,0.021,20930.0,20929.0,0.57791427]
[1674068202795,0.021,20930.0,20929.0,1.05571927]
[1674068204140,5.909e-05,20933.0,20930.0,0.15]
[1674068204344,5.909e-05,20933.0,20932.0,0.0774]
[1674068204591,5.909e-05,20933.0,20932.0,0.335463]
[1674068204859,5.909e-05,20933.0,20932.0,0.33546]